bitfinex-derivatives/quotes_ETHF0:USTF0_20240817
["timestamp","ask_amount","ask_price","bid_price","bid_amount"]
[1723854889587,1.39,2590.1,2589.8,1.93]
[1723854890188,3.31982,2590.1,2589.8,1.93]
[1723854895695,1.39,2589.9,2589.4,0.00211784]
[1723854895990,1.39,2589.5,2589.4,0.00211784]
[1723854896198,3.32026,2589.5,2589.4,0.00211784]
[1723854898185,4.5978,2589.6,2589.4,0.00211784]
[1723854900385,4.5978,2589.6,2589.4,5.79403784]
[1723854900585,3.2078,2589.6,2589.5,3.32026]
[1723854900792,3.2078,2589.6,2589.5,7.18186]
[1723854901696,1.0936,2589.8,2589.6,1.93015]
[1723854901893,0.10699346,2589.7,2589.6,1.93015]
[1723854902090,1.0936,2589.8,2589.6,5.79175]
[1723854902392,0.10698932,2589.7,2589.6,3.32015]
[1723854902598,0.3706,2589.8,2589.7,1.93011]
[1723854902794,1.86758848,2589.8,2589.7,3.8616]
[1723854902998,1.86758848,2589.8,2589.5,1.93026]
[1723854903194,0.47648848,2589.7,2589.5,1.93026]
[1723854903492,0.3695,2589.7,2589.4,3.32241784]
[1723854903699,0.3503,2589.6,2589.4,3.32241784]
[1723854903994,0.3503,2589.6,2589.4,7.18401784]
[1723854904194,1.7403,2589.6,2589.4,3.86371784]
[1723854904396,3.4272472,2589.5,2589.4,0.00211784]
[1723854905015,5.32850214,2589.5,2589.4,0.00211784]
[1723854905187,3.42725238,2589.5,2589.4,0.00211784]
[1723854905894,2.03725238,2589.5,2589.4,0.00211784]
[1723854906799,4.5574212,2589.5,2589.4,0.00211784]
[1723854907394,2.03725238,2589.5,2589.4,0.00211784]
[1723854909302,4.05098431,2589.5,2589.4,0.00211784]
[1723854909501,1.93053,2589.2,2588.7,6.15059444]
[1723854909699,0.7426,2589.1,2588.7,5.1386]
[1723854910004,0.1069878,2589.0,2588.7,5.1386]
[1723854910295,0.7426,2589.1,2588.8,1.93076]
[1723854910488,0.7426,2589.1,2588.8,1.93524772]
[1723854910694,2.67316,2589.1,2588.8,1.93524772]
[1723854912497,0.7426,2589.1,2588.8,0.00448772]
[1723854912693,0.7426,2589.1,2589.0,1.93064]
[1723854912894,0.3454,2589.2,2589.0,1.93064]
[1723854913103,0.3454,2589.2,2588.9,0.3445]
[1723854913298,0.3454,2589.2,2589.1,1.93056]
[1723854916099,0.3454,2589.2,2589.1,5.79296]
[1723854916504,0.00578402,2589.5,2589.4,1.93034]
[1723854916999,0.00578402,2589.5,2589.4,5.79194]
[1723854918301,0.00578402,2589.5,2589.3,3.2078]
[1723854918495,0.00578402,2589.5,2589.3,5.13819]
[1723854918697,0.00578402,2589.5,2589.4,1.93034]
[1723854918898,0.00578402,2589.5,2589.3,5.13816]
[1723854919707,0.00578402,2589.5,2589.3,3.2078]
[1723854919903,0.00578402,2589.5,2589.3,5.13818]
[1723854920901,0.00578402,2589.5,2589.3,1.93038]
[1723854922912,0.00578402,2589.5,2589.4,1.93034]
[1723854923409,0.00578402,2589.5,2589.4,5.79194]
[1723854924899,1.50901236,2589.9,2589.4,12.0694]
[1723854925108,0.3594,2590.3,2590.2,1.92974]
[1723854926503,0.3594,2590.3,2590.2,7.18054]
[1723854926704,0.00578402,2590.5,2590.4,1.92959]
[1723854927106,1.39578402,2590.5,2590.3,1.92962]
[1723854927411,0.00578402,2590.5,2590.4,1.92959]
[1723854927925,0.00578402,2590.5,2590.4,5.78959]
[1723854930700,0.00578402,2590.5,2590.4,1.92959]
[1723854930902,0.00578402,2590.5,2590.2,3.2078]
[1723854931103,0.00578402,2590.5,2590.1,1.92977]
[1723854931315,0.00578402,2590.5,2590.0,1.93564402]
[1723854931316,1.93532402,2590.5,2590.0,1.93564402]
[1723854931515,5.14312402,2590.5,2590.0,1.93564402]
[1723854931720,1.92961,2590.4,2590.0,1.93564402]
[1723854932016,3.21358402,2590.5,2590.1,1.92982]
[1723854932614,5.14310402,2590.5,2590.1,1.92982]
[1723854933320,3.21358402,2590.5,2590.1,1.92982]
[1723854933620,3.21358402,2590.5,2590.2,1.92973]
[1723854933821,3.21358402,2590.5,2590.4,1.92959]
[1723854934211,3.21358402,2590.5,2590.4,5.78959]
[1723854934709,0.00578402,2590.5,2590.4,3.86]
[1723854934915,0.00578402,2590.5,2590.4,5.78959]
[1723854936815,0.00578402,2590.5,2590.4,10.78959]
[1723854937415,0.37368282,2590.7,2590.6,1.92944]
[1723854937617,0.00288282,2590.7,2590.6,1.92944]
[1723854937822,0.00288282,2590.7,2590.6,5.78944]
[1723854938722,0.00288282,2590.7,2590.6,3.86]
[1723854938925,0.00288282,2590.7,2590.6,5.78944]
[1723854940519,0.00288282,2590.7,2590.3,3.2078]
[1723854940726,1.92948,2590.6,2590.3,3.2078]
[1723854940926,0.6885,2590.5,2590.3,3.2078]
[1723854941135,0.3623,2590.4,2590.3,5.13747]
[1723854941539,0.3623,2590.4,2590.3,5.79047]
[1723854942440,0.3623,2590.4,2590.0,0.00578402]
[1723854942633,1.92967,2590.3,2590.0,1.93564402]
[1723854942833,5.49973,2590.4,2590.0,1.93564402]
[1723854943134,5.49973,2590.4,2590.1,1.9298]
[1723854943440,3.5701,2590.4,2590.1,1.9298]
[1723854943644,0.3623,2590.4,2590.1,1.9298]
[1723854944738,2.29191,2590.4,2590.1,1.9298]
[1723854945339,0.3623,2590.4,2590.1,1.9298]
[1723854946039,0.3623,2590.4,2590.3,1.92967]
[1723854946543,0.3623,2590.4,2590.3,3.8608]
[1723854948843,0.3623,2590.4,2590.2,1.9297]
[1723854949346,0.3623,2590.4,2590.1,1.92978]
[1723854949538,1.92969,2590.3,2590.0,0.00578402]
[1723854949741,2.29193,2590.4,2590.0,0.00578402]
[1723854950043,0.3623,2590.4,2590.1,1.92978]
[1723854950236,0.3623,2590.4,2590.0,0.00578402]
[1723854950434,0.3623,2590.4,2590.1,1.92979]
[1723854951647,0.3623,2590.4,2590.1,1.92981]
[1723854952752,0.3623,2590.4,2590.0,1.93564402]
[1723854953539,0.3623,2590.4,2590.1,1.92981]
[1723854954042,0.3623,2590.4,2590.2,1.92972]
[1723854954248,0.3623,2590.4,2590.1,1.92977]
[1723854955540,0.3623,2590.4,2590.1,1.92976]
[1723854956536,0.3623,2590.4,2590.0,0.00578402]
[1723854956850,0.3623,2590.4,2590.0,1.93563402]
[1723854957145,0.3623,2590.4,2590.0,0.00578402]
[1723854957146,2.29194,2590.4,2590.0,0.00578402]
[1723854958349,2.29194,2590.4,2590.0,1.93566402]
[1723854960546,0.3623,2590.4,2590.1,1.92981]
[1723854961043,2.29189,2590.4,2590.0,1.93562402]
[1723854961344,0.10706028,2590.3,2590.0,0.00578402]
[1723854961546,3.80090236,2590.4,2590.0,0.00578402]
[1723854961747,0.10707206,2590.3,2590.0,0.00578402]
[1723854961944,3.80090236,2590.4,2590.0,0.00578402]
[1723854962246,0.10707395,2590.3,2590.0,1.93566402]
[1723854962447,3.80090236,2590.4,2590.0,1.93566402]
[1723854962648,0.10707012,2590.3,2590.0,1.93566402]
[1723854962847,3.80090236,2590.4,2590.0,1.93566402]
[1723854963048,0.10707225,2590.3,2590.0,1.93566402]
[1723854963341,0.10707207,2590.2,2590.0,1.93566402]
[1723854963548,3.80090236,2590.4,2590.0,1.93566402]
[1723854963744,0.3654,2590.1,2590.0,1.93566402]
[1723854964846,0.3654,2590.1,2590.0,0.00578402]
[1723854965043,6.26309481,2590.1,2590.0,0.00578402]
[1723854965241,8.27660887,2590.1,2590.0,0.00578402]
[1723854965549,1.93026,2589.6,2589.2,0.3608]
[1723854965848,2.5098,2589.5,2589.2,1.93045]
[1723854967342,2.5098,2589.5,2589.3,1.39]
[1723854967538,2.5098,2589.5,2589.3,3.3204]
[1723854967848,1.1198,2589.5,2589.4,1.93034]
[1723854968054,1.1198,2589.5,2589.3,1.93038]
[1723854968551,1.1198,2589.5,2589.4,1.93034]
[1723854969941,1.22686827,2589.5,2589.4,1.93034]
[1723854970138,1.22686827,2589.5,2589.1,0.00578402]
[1723854970139,1.1198,2589.5,2589.3,1.93036]
[1723854970545,1.1198,2589.5,2589.4,1.93034]
[1723854971146,1.1198,2589.5,2589.1,0.00578402]
[1723854971342,3.0501,2589.5,2589.2,1.93045]
[1723854971839,1.93041,2589.3,2589.1,1.93630402]
[1723854972039,1.93041,2589.3,2589.1,0.00578402]
[1723854972244,1.93041,2589.3,2589.1,1.93633402]
[1723854972444,1.93041,2589.3,2589.1,0.00578402]
[1723854974649,1.93038,2589.4,2589.1,1.93633402]
[1723854975044,1.93042,2589.3,2589.1,1.93633402]
[1723854975648,1.93042,2589.3,2589.1,0.00578402]
[1723854975954,1.93039,2589.4,2589.1,1.93634402]
[1723854976353,3.0501,2589.5,2589.2,1.93042]
[1723854976548,1.1198,2589.5,2589.3,1.93041]
[1723854977153,3.05006,2589.5,2589.2,1.93046]
[1723854977344,3.05006,2589.5,2589.1,1.93628402]
[1723854977551,3.05006,2589.5,2589.2,1.93048]
[1723854978851,1.1198,2589.5,2589.2,1.93048]
[1723854980554,1.1198,2589.5,2589.1,1.93629402]
[1723854980757,3.05007,2589.5,2589.1,1.93629402]
[1723854981651,1.93036,2589.4,2589.1,0.00578402]
[1723854981852,5.13821,2589.3,2589.1,0.00578402]
[1723854982959,1.93049,2589.2,2589.1,0.00578402]
[1723854983552,5.79289,2589.2,2589.1,0.00578402]
[1723854985857,2.6300582,2589.5,2589.1,0.00578402]
[1723854986160,1.1198,2589.5,2589.2,1.93046]
[1723854986372,1.1198,2589.5,2589.1,1.93630402]
[1723854986659,3.05009,2589.5,2589.1,1.93630402]
[1723854986863,1.1198,2589.5,2589.2,1.93048]
[1723854987062,3.2078,2589.6,2589.2,3.8616]
[1723854987257,0.00578402,2589.7,2589.6,1.93019]
[1723854987661,0.00578402,2589.7,2589.6,5.79179]
[1723854988556,0.00578402,2589.7,2589.6,3.8616]
[1723854989061,0.00578402,2589.7,2589.6,5.79179]
[1723854989259,0.00578402,2589.7,2589.6,3.8616]
[1723854989454,0.00578402,2589.7,2589.6,5.79179]
[1723854994164,0.00578402,2589.7,2589.6,8.99959]
[1723854994359,0.3618,2590.1,2590.0,1.92989]
[1723854996068,0.3618,2590.1,2589.9,1.92992]
[1723854996271,0.3618,2590.1,2590.0,1.92989]
[1723854998074,0.3618,2590.1,2589.9,1.92993]
[1723854998276,0.3618,2590.1,2589.8,1.93004]
[1723854999774,0.1070993,2590.0,2589.8,1.93004]
[1723854999972,0.3618,2590.1,2589.8,1.93004]
[1723855000168,0.3618,2590.1,2589.5,3.5491]
[1723855000169,0.10709928,2590.0,2589.9,1.92996]
[1723855000373,0.3618,2590.1,2589.9,1.92996]
[1723855002169,0.3618,2590.1,2589.8,1.93001]
[1723855002876,0.3618,2590.1,2589.9,1.92994]
[1723855006679,7.00833222,2590.3,2589.9,1.92991]
[1723855006980,0.3463,2590.1,2589.9,1.92991]
[1723855008980,0.3463,2590.1,2590.0,1.92989]
[1723855009480,0.45339754,2590.1,2590.0,1.92989]
[1723855009677,0.45339754,2590.1,2589.9,1.92992]
[1723855009876,0.3463,2590.1,2589.9,1.92992]
[1723855011380,0.3463,2590.1,2590.0,1.92989]
[1723855011569,0.45339204,2590.1,2590.0,1.92989]
[1723855012374,0.3463,2590.1,2590.0,1.92989]
[1723855012583,5.07864222,2590.3,2590.2,1.92974]
[1723855012779,0.00578402,2590.3,2590.2,1.92974]
[1723855012979,0.00578402,2590.3,2590.2,5.79054]
[1723855013181,0.00578402,2590.3,2590.2,14.99163798]
[1723855014880,0.00578402,2590.3,2590.2,6.13083798]
[1723855015178,3.86658402,2590.3,2589.6,1.01199444]
[1723855015373,0.3554,2590.2,2589.5,4.59229444]
[1723855015573,0.3554,2590.2,2589.7,4.4249858]
[1723855015770,0.3554,2590.2,2589.9,1.9299]
[1723855017782,2.28514,2590.2,2589.9,1.9299]
[1723855018782,0.3554,2590.2,2590.0,1.92987]
[1723855019379,0.3554,2590.2,2589.9,1.92992]
[1723855020473,2.28515,2590.2,2589.9,1.92992]
[1723855022289,0.10708697,2590.1,2589.9,1.92992]
[1723855022581,1.9299,2590.0,2589.5,3.5645]
[1723855022784,2.65494,2590.0,2589.7,1.93008]
[1723855023184,0.725,2590.0,2589.6,1.93014]
[1723855023377,1.92998,2589.9,2589.6,1.93014]
[1723855023576,0.725,2590.0,2589.6,1.93014]
[1723855023781,1.92997,2589.9,2589.6,1.93014]
[1723855024081,2.65493,2590.0,2589.7,1.93009]
[1723855027185,0.10708965,2589.9,2589.7,1.93009]
[1723855027387,0.725,2590.0,2589.8,1.93002]
[1723855027599,0.725,2590.0,2589.9,1.92996]
[1723855028292,0.83209081,2590.0,2589.9,1.92996]
[1723855029197,0.83209081,2590.0,2589.5,1.01199444]
[1723855029385,0.10708638,2589.9,2589.4,9.48613444]
[1723855029581,0.725,2590.0,2589.5,5.09158532]
[1723855029893,0.10708373,2589.9,2589.8,1.92997]
[1723855030788,0.10708373,2589.9,2589.5,1.01199444]
[1723855030789,0.10708373,2589.9,2589.7,1.93007]
[1723855030989,0.45188373,2589.8,2589.6,1.93015]
[1723855031290,0.10708373,2589.7,2589.6,1.93015]
[1723855031800,1.8550582,2589.8,2589.7,1.93011]
[1723855032091,0.45189481,2589.8,2589.7,1.93011]
[1723855032599,0.10709481,2589.8,2589.7,5.79171]
[1723855032800,2.2352582,2590.0,2589.9,1.92996]
[1723855033097,2.34234214,2590.0,2589.9,1.92996]
[1723855033482,1.98134214,2590.0,2589.9,1.92996]
[1723855033688,0.10708394,2590.0,2589.9,18.01184821]
[1723855033894,1.5102582,2590.2,2590.1,1.92981]
[1723855034097,0.10708005,2590.2,2590.1,1.92981]
[1723855034284,0.10708005,2590.2,2590.1,5.79061]
[1723855036686,0.00578402,2590.3,2590.2,1.92974]
[1723855036892,0.00578402,2590.3,2590.2,11.16656966]
[1723855037193,0.00578402,2590.3,2590.2,20.20422784]
[1723855037392,0.00578402,2590.3,2590.2,18.68786492]
[1723855037697,0.00578402,2590.3,2590.2,20.20422784]
[1723855037886,0.00578402,2590.3,2590.2,20.20408929]
[1723855039300,0.00288282,2590.7,2590.6,1.92944]
[1723855039496,0.00288282,2590.7,2590.6,5.78944]
[1723855039802,0.00288282,2590.7,2590.6,11.10131985]
[1723855040490,0.00288282,2590.7,2590.6,12.02036072]
[1723855040695,2.82e-06,2590.7,2590.6,21.8896908]
[1723855040902,2.82e-06,2590.7,2590.6,20.87929167]
[1723855041091,2.82e-06,2590.7,2590.6,22.90008994]
[1723855041497,2.82e-06,2590.7,2590.6,23.39322623]
[1723855041698,0.3655,2591.5,2591.4,1.92885]
[1723855042006,1.5102582,2591.8,2591.7,1.92862]
[1723855042299,1.8757582,2591.8,2591.7,1.92862]
[1723855042699,1.879214,2591.8,2591.7,1.93179736]
[1723855042898,0.3689558,2591.8,2591.7,1.93179736]
[1723855043399,0.3689558,2591.8,2591.7,5.79019736]
[1723855044190,0.3689558,2591.8,2591.7,1.93179736]
[1723855044395,0.3689558,2591.8,2591.7,5.79019736]
[1723855044596,0.0034558,2591.8,2591.7,5.79019736]
[1723855052905,0.3599,2592.1,2592.0,1.9284]
[1723855053909,0.3571,2592.6,2592.4,1.92804]
[1723855054111,0.7285,2592.5,2592.4,1.92804]
[1723855054596,0.7285,2592.5,2592.3,1.92813]
[1723855056501,0.7285,2592.5,2592.4,1.9281]
[1723855058104,0.7285,2592.5,2592.3,1.92813]
[1723855058500,0.7285,2592.5,2592.4,1.9281]
[1723855059808,4.5861,2592.5,2592.3,1.92813]
[1723855060105,0.7285,2592.5,2592.4,1.9281]
[1723855064910,0.7285,2592.5,2592.4,5.7857]
[1723855065312,0.15754129,2592.5,2592.4,9.1217]
[1723855065503,0.15754129,2592.5,2592.4,13.39492654]
[1723855066013,0.36147057,2592.6,2592.4,13.39492654]
[1723855066217,0.00437057,2592.6,2592.4,13.39492654]
[1723855066511,0.00437057,2592.6,2592.5,1.92803]
[1723855066909,0.00437057,2592.6,2592.5,5.78563]
[1723855067711,0.00437057,2592.6,2592.5,1.92803]
[1723855068513,0.35247057,2592.6,2592.5,1.92803]
[1723855069818,0.35247057,2592.6,2592.4,5.26407]
[1723855070008,2.28045057,2592.6,2592.4,1.9281]
[1723855070210,1.92803,2592.5,2592.1,3.336]
[1723855070616,1.92803,2592.5,2592.3,1.92815]
[1723855071315,2.28047057,2592.6,2592.3,1.92815]
[1723855071521,0.35247057,2592.6,2592.2,1.92825]
[1723855071715,0.35247057,2592.6,2592.1,3.336]
[1723855072021,0.35247057,2592.6,2592.5,1.92803]
[1723855075013,0.35247057,2592.6,2592.4,1.92805]
[1723855075521,0.35247057,2592.6,2592.5,1.92803]
[1723855076518,0.35247057,2592.6,2592.1,6.5438]
[1723855076519,2.28042057,2592.6,2592.4,1.92807]
[1723855077319,6.13806057,2592.6,2592.3,1.92812]
[1723855077526,2.28046057,2592.6,2592.4,1.92809]
[1723855077720,2.28046057,2592.6,2592.3,1.92813]
[1723855078225,5.48826057,2592.6,2592.3,1.92813]
[1723855078522,1.92821,2592.3,2592.1,1.9283]
[1723855078712,0.3639,2592.2,2592.1,1.9283]
[1723855078913,0.7271,2592.2,2592.1,1.9283]
[1723855079319,0.7271,2592.2,2592.0,3.2078]
[1723855079624,0.3718,2592.1,2592.0,5.1362]
[1723855079828,0.3718,2592.1,2591.7,1.93175736]
[1723855080131,0.3718,2592.1,2591.8,1.92855]
[1723855080427,1.92855,2591.8,2591.7,0.00317736]
[1723855080823,3.8584,2591.8,2591.7,1.93179736]
[1723855081023,3.8584,2591.8,2591.7,0.00317736]
[1723855081523,4.2092,2591.8,2591.7,0.00317736]
[1723855081721,0.3508,2591.8,2591.7,0.00317736]
[1723855081924,0.3508,2591.8,2591.7,1.93179736]
[1723855083929,6.13775,2591.8,2591.7,0.00317736]
[1723855085130,6.24469238,2591.8,2591.7,0.00317736]
[1723855085330,6.13775,2591.8,2591.7,0.00317736]
[1723855086635,6.24468668,2591.8,2591.7,0.00317736]
[1723855086934,6.24468838,2591.8,2591.7,0.00317736]
[1723855087529,6.24468214,2591.8,2591.7,0.00317736]
[1723855087734,0.45773214,2591.8,2591.7,0.00317736]
[1723855087928,0.45772874,2591.8,2591.7,0.00317736]
[1723855088322,0.3508,2591.8,2591.7,0.00317736]
[1723855088730,4.2092,2591.8,2591.7,0.00317736]
[1723855089038,0.3508,2591.8,2591.7,1.93179736]
[1723855089828,0.3508,2591.8,2591.7,0.00317736]
[1723855090334,2.38540782,2592.1,2591.7,0.00317736]
[1723855090335,0.3718,2592.1,2592.0,1.9284]
[1723855097537,0.3632,2592.2,2592.1,1.92833]
[1723855098239,0.3632,2592.2,2592.1,5.78593]
[1723855100337,0.3632,2592.2,2592.1,1.92833]
[1723855101135,0.3632,2592.2,2592.0,5.26433]
[1723855101336,0.3632,2592.2,2592.1,1.92833]
[1723855101736,1.88230586,2592.4,2592.3,1.92818]
[1723855101932,0.47900671,2592.4,2592.2,1.92821]
[1723855102138,0.3721,2592.4,2592.2,1.92821]
[1723855102441,1.86520586,2592.5,2592.3,3.336]
[1723855102654,0.355,2592.5,2592.3,5.26411]
[1723855103334,0.355,2592.5,2592.4,1.9281]
[1723855103534,0.355,2592.5,2592.3,5.26415]
[1723855104136,0.355,2592.5,2592.4,1.9281]
[1723855104332,0.46191302,2592.5,2592.4,1.9281]
[1723855104547,0.355,2592.5,2592.4,1.9281]
[1723855105045,0.46191346,2592.5,2592.4,1.9281]
[1723855105232,0.355,2592.5,2592.4,1.9281]
[1723855105540,0.46191244,2592.5,2592.4,1.9281]
[1723855105746,0.355,2592.5,2592.4,1.9281]
[1723855106348,0.46191394,2592.5,2592.4,1.9281]
[1723855106645,0.355,2592.5,2592.4,1.9281]
[1723855108443,0.355,2592.5,2592.3,3.336]
[1723855108840,2.28306,2592.5,2592.3,3.336]
[1723855110244,1.9281,2592.4,2592.3,3.336]
[1723855110448,1.9281,2592.4,2592.1,1.92828]
[1723855111248,1.92818,2592.3,2592.1,1.92828]
[1723855111449,0.3686,2592.2,2592.1,1.92828]
[1723855111649,0.7302,2592.2,2592.1,1.92828]
[1723855112437,0.7302,2592.2,2592.0,8.47217]
[1723855112642,2.65848,2592.2,2592.0,8.47217]
[1723855113150,0.7302,2592.2,2592.1,1.92833]
[1723855113741,0.7302,2592.2,2592.0,8.47216]
[1723855114347,2.65848,2592.2,2592.0,6.5438]
[1723855114550,0.7302,2592.2,2592.1,1.92833]
[1723855117349,0.7302,2592.2,2592.0,5.26435]
[1723855117547,2.65848,2592.2,2592.0,5.26435]
[1723855117747,0.7302,2592.2,2592.0,5.26435]
[1723855117949,0.7302,2592.2,2592.0,3.336]
[1723855118148,0.7302,2592.2,2592.1,1.92833]
[1723855118455,0.83718445,2592.2,2592.1,1.92833]
[1723855118655,0.7302,2592.2,2592.1,1.92833]
[1723855118951,1.51020586,2592.4,2592.3,1.92818]
[1723855119144,1.61719133,2592.4,2592.3,1.92818]
[1723855119352,1.61719182,2592.4,2592.3,1.92818]
[1723855119557,0.10698596,2592.4,2592.3,1.92818]
[1723855120552,1.61719182,2592.4,2592.3,1.92818]
[1723855123358,7.40290182,2592.4,2592.2,1.92823]
[1723855123561,3.54851783,2592.3,2592.0,3.336]
[1723855123955,0.44837684,2592.2,2592.1,1.92829]
[1723855124351,0.44837863,2592.2,2592.1,1.92829]
[1723855125867,0.44837863,2592.2,2592.1,3.31729]
[1723855126058,0.3414,2592.2,2592.1,3.31729]
[1723855129763,0.44837614,2592.2,2592.1,3.31729]
[1723855129966,0.3414,2592.2,2592.1,3.31729]
[1723855130563,0.10698284,2592.2,2592.1,3.31729]
[1723855130762,1.51335187,2592.5,2592.3,1.92818]
[1723855130962,0.00437057,2592.6,2592.5,1.92803]
[1723855131164,0.11134205,2592.6,2592.5,3.31703]
[1723855131364,0.11134205,2592.6,2592.5,10.11080081]
[1723855131365,0.00437057,2592.6,2592.5,10.11080081]
[1723855131569,0.00437057,2592.6,2592.5,10.61485387]
[1723855131863,0.00437057,2592.6,2592.5,12.55785387]
[1723855133058,0.00437057,2592.6,2592.5,12.0549799]
[1723855133570,0.00437057,2592.6,2592.5,11.04569471]
[1723855133774,0.00437057,2592.6,2592.5,12.05497322]
[1723855134965,0.00437057,2592.6,2592.5,15.26277322]
[1723855135766,0.00437057,2592.6,2592.5,15.26279425]
[1723855136466,0.00437057,2592.6,2592.5,6.14510851]
[1723855136670,0.00437057,2592.6,2592.5,5.13583]
[1723855137268,0.1113633,2592.6,2592.5,5.13583]
[1723855137764,0.1113633,2592.6,2592.5,3.2078]
[1723855137964,0.1113633,2592.6,2592.5,5.13583]
[1723855138668,0.1113633,2592.6,2592.5,3.2078]
[1723855138874,5.48231517,2592.6,2592.5,1.92803]
[1723855139167,0.1113633,2592.6,2592.5,1.92803]
[1723855140665,0.00437057,2592.6,2592.5,1.92803]
[1723855141571,0.11135238,2592.6,2592.5,1.92803]
[1723855141869,0.11135467,2592.6,2592.5,1.92803]
[1723855142071,0.11135749,2592.6,2592.5,1.92803]
[1723855143765,0.11135749,2592.6,2592.5,5.13583]
[1723855144873,0.11135749,2592.6,2592.5,14.25346]
[1723855144874,0.00437057,2592.6,2592.5,14.25346]
[1723855145081,0.00437057,2592.6,2592.5,15.48333851]
[1723855145368,0.00437057,2592.6,2592.5,17.41144334]
[1723855145769,0.00437057,2592.6,2592.5,15.48333851]
[1723855147277,0.00437057,2592.6,2592.5,14.47406]
[1723855147774,0.00437057,2592.6,2592.5,15.98621916]
[1723855147974,0.00437057,2592.6,2592.5,9.97998916]
[1723855148370,0.00437057,2592.6,2592.5,11.9080591]
[1723855148570,0.00437057,2592.6,2592.5,9.97998916]
[1723855151083,0.00437057,2592.6,2592.5,15.76561916]
[1723855151877,0.00437057,2592.6,2592.5,13.82161916]
[1723855152371,0.00437057,2592.6,2592.5,8.68578916]
[1723855152674,0.00437057,2592.6,2592.5,11.89358916]
[1723855153378,0.00437057,2592.6,2592.5,8.03598916]
[1723855153972,0.00437057,2592.6,2592.5,9.96401916]
[1723855154171,0.00437057,2592.6,2592.5,8.03598916]
[1723855154869,0.00437057,2592.6,2592.5,6.52383]
[1723855155075,0.00437057,2592.6,2592.5,8.45193686]
[1723855155978,0.00437057,2592.6,2592.5,6.52383]
[1723855158982,0.00437057,2592.6,2592.5,3.31603]
[1723855159179,0.00437057,2592.6,2592.5,6.52383]
[1723855159681,0.00437057,2592.6,2592.5,3.31603]
[1723855160075,0.00437057,2592.6,2592.5,8.45186]
[1723855160278,0.00437057,2592.6,2592.5,8.81046]
[1723855162280,0.00437057,2592.6,2592.5,12.66806]
[1723855162471,0.00437057,2592.6,2592.5,21.71409891]
[1723855162668,0.00578402,2592.8,2592.7,5.24376]
[1723855162868,2.01820226,2593.1,2592.7,1.388]
[1723855163075,2.51700978,2593.2,2593.1,5.24316]
[1723855163577,2.52154816,2593.2,2593.1,18.78403446]
[1723855164177,0.00385604,2593.4,2593.3,1.92743]
[1723855164389,0.00385604,2593.4,2593.3,3.31543]
[1723855164579,0.00385604,2593.4,2593.3,11.23986053]
[1723855165283,0.00831371,2593.4,2593.3,11.23986053]
[1723855166388,0.00831371,2593.4,2593.3,14.44766053]
[1723855166886,0.00831371,2593.4,2593.3,6.52323]
[1723855169482,0.00831371,2593.4,2593.3,14.4784396]
[1723855173996,0.00831371,2593.4,2593.3,11.2706396]
[1723855175399,0.00831371,2593.4,2593.3,21.4058696]
[1723855176109,0.00831371,2593.4,2593.3,16.4058696]
[1723855176497,0.00831371,2593.4,2593.3,14.4784396]
[1723855177210,0.00831371,2593.4,2593.3,10.6224396]
[1723855178812,0.00831371,2593.4,2593.3,7.4146396]
[1723855179008,0.00831371,2593.4,2593.3,10.6224396]
[1723855185312,0.00831371,2593.4,2593.3,14.4784396]
[1723855185515,0.00831371,2593.4,2593.3,16.4058696]
[1723855185704,0.00831371,2593.4,2593.3,14.4784396]
[1723855186113,0.00831371,2593.4,2593.3,16.4058696]
[1723855187006,0.00831371,2593.4,2593.3,14.4784396]
[1723855187208,0.00831371,2593.4,2593.3,21.4058696]
[1723855187411,0.00831371,2593.4,2593.3,14.4784396]
[1723855187615,0.00831371,2593.4,2593.3,10.6224396]
[1723855187811,0.36191371,2593.4,2593.3,10.6224396]
[1723855188216,0.36191371,2593.4,2593.3,6.52323]
[1723855188708,0.36191371,2593.4,2593.3,10.82797797]
[1723855190514,0.36191371,2593.4,2593.3,9.43997797]
[1723855190711,1.92745,2593.3,2593.0,3.2078]
[1723855190914,2.28931371,2593.4,2593.2,1.388]
[1723855191115,0.36191371,2593.4,2593.2,3.3155]
[1723855192019,0.36191371,2593.4,2593.3,1.92743]
[1723855192219,4.21791371,2593.4,2593.3,1.92743]
[1723855192429,0.36191371,2593.4,2593.3,1.92743]
[1723855192923,4.21791371,2593.4,2593.3,1.92743]
[1723855193126,0.36191371,2593.4,2593.3,1.92743]
[1723855193418,4.21791371,2593.4,2593.3,1.92743]
[1723855193718,0.36191371,2593.4,2593.3,1.92743]
[1723855194025,0.70551371,2593.4,2593.3,1.92743]
[1723855195317,4.56151371,2593.4,2593.3,1.92743]
[1723855195515,4.56151371,2593.4,2592.9,1.01267071]
[1723855195723,2.63292371,2593.4,2593.3,1.388]
[1723855196027,2.73987467,2593.4,2593.3,1.388]
[1723855196217,6.59587467,2593.4,2593.3,1.388]
[1723855197323,4.66846467,2593.4,2593.3,1.388]
[1723855197520,0.81246467,2593.4,2593.3,1.388]
[1723855197721,4.66846467,2593.4,2593.3,1.388]
[1723855197920,0.81246467,2593.4,2593.3,1.388]
[1723855198119,4.66846467,2593.4,2593.3,1.388]
[1723855199228,4.66846174,2593.4,2593.3,1.388]
[1723855199527,6.59582174,2593.4,2593.3,1.388]
[1723855200222,0.81246174,2593.4,2593.3,1.388]
[1723855200421,4.66846174,2593.4,2593.3,1.388]
[1723855200828,0.81246174,2593.4,2593.3,1.388]
[1723855201616,4.66846174,2593.4,2593.3,1.388]
[1723855201827,0.81246174,2593.4,2593.3,1.388]
[1723855202027,0.81245635,2593.4,2593.3,1.388]
[1723855202723,4.66845635,2593.4,2593.3,1.388]
[1723855203131,6.59581465,2593.4,2593.3,1.388]
[1723855203720,4.66845465,2593.4,2593.3,1.388]
[1723855204328,4.66845465,2593.4,2593.3,3.31543]
[1723855204633,0.81245465,2593.4,2593.3,3.31543]
[1723855206031,0.70551371,2593.4,2593.3,3.31543]
[1723855206330,0.81245041,2593.4,2593.3,3.31543]
[1723855206732,0.81244625,2593.4,2593.3,3.31543]
[1723855207532,0.46884625,2593.4,2593.3,3.31543]
[1723855209927,0.11524625,2593.4,2593.3,11.19454446]
[1723855210129,0.00831371,2593.4,2593.3,19.96354568]